[Event "*** Titled Tuesday Blitz"]
[Site "Chess.com"]
[Date "2020.02.04"]
[Round "3"]
[White "miroslavsavic"]
[Black "MaxLeto"]
[Result "1-0"]
[WhiteElo "2150"]
[BlackElo "2345"]
[TimeControl "180+2"]
[EndTime "9:37:50 PST"]
[Termination "miroslavsavic won by checkmate"]

1. Nf3 {[%clk 0:03:01.9]} 1... d5 {[%clk 0:02:57.7]} 2. d4 {[%clk 0:02:57]} 2...
Nf6 {[%clk 0:02:58.2]} 3. c4 {[%clk 0:02:58.9]} 3... e6 {[%clk 0:02:57.3]} 4.
Nc3 {[%clk 0:02:58.6]} 4... Be7 {[%clk 0:02:58.3]} 5. Bg5 {[%clk 0:02:53.8]}
5... O-O {[%clk 0:02:59.1]} 6. e3 {[%clk 0:02:51.8]} 6... h6 {[%clk 0:02:54.7]}
7. Bxf6 {[%clk 0:02:51.3]} 7... Bxf6 {[%clk 0:02:55.5]} 8. Qc2 {[%clk
0:02:41.8]} 8... Re8 {[%clk 0:02:41]} 9. O-O-O {[%clk 0:02:39]} 9... a6 {[%clk
0:02:25.5]} 10. cxd5 {[%clk 0:02:24.8]} 10... exd5 {[%clk 0:02:25.9]} 11. Bd3
{[%clk 0:02:21.8]} 11... b6 {[%clk 0:02:01.2]} 12. Rhg1 {[%clk 0:02:15.9]} 12...
Be6 {[%clk 0:01:51.3]} 13. g4 {[%clk 0:02:13.9]} 13... c5 {[%clk 0:01:51.2]} 14.
Kb1 {[%clk 0:02:04.1]} 14... Nc6 {[%clk 0:01:52]} 15. a3 {[%clk 0:01:55.8]}
15... c4 {[%clk 0:01:40.5]} 16. Bf5 {[%clk 0:01:52.4]} 16... b5 {[%clk
0:01:42.1]} 17. g5 {[%clk 0:01:46.3]} 17... hxg5 {[%clk 0:01:42.4]} 18. h4
{[%clk 0:01:44.3]} 18... gxh4 {[%clk 0:01:42.7]} 19. Bxe6 {[%clk 0:01:31.7]}
19... Rxe6 {[%clk 0:00:57.1]} 20. e4 {[%clk 0:01:32]} 20... b4 {[%clk
0:00:18.2]} 21. exd5 {[%clk 0:01:22.6]} 21... bxc3 {[%clk 0:00:18.7]} 22. dxe6
{[%clk 0:01:23.1]} 22... cxb2 {[%clk 0:00:18.5]} 23. exf7+ {[%clk 0:01:11.4]}
23... Kf8 {[%clk 0:00:19.9]} 24. Qxc4 {[%clk 0:01:06.4]} 24... Qd6 {[%clk
0:00:12.4]} 25. Rge1 {[%clk 0:00:35]} 25... Rc8 {[%clk 0:00:07.3]} 26. Re8+
{[%clk 0:00:32.5]} 26... Rxe8 {[%clk 0:00:08.2]} 27. fxe8=Q+ {[%clk 0:00:33.1]}
27... Kxe8 {[%clk 0:00:10.1]} 28. Qxa6 {[%clk 0:00:16.7]} 28... Qd5 {[%clk
0:00:03.6]} 29. Qc8+ {[%clk 0:00:13]} 29... Kf7 {[%clk 0:00:03.4]} 30. Re1
{[%clk 0:00:12.9]} 30... Qc5 {[%clk 0:00:02.2]} 31. Qe8# {[%clk 0:00:11.5]} 1-0

[Event "*** Titled Tuesday Blitz"]
[Site "Chess.com"]
[Date "2020.02.04"]
[Round "3"]
[White "DamianoLew95"]
[Black "Korchmar_Vasiliy"]
[Result "0-1"]
[WhiteElo "2594"]
[BlackElo "2830"]
[TimeControl "180+2"]
[EndTime "9:37:52 PST"]
[Termination "Korchmar_Vasiliy won by resignation"]

1. d4 {[%clk 0:03:01.9]} 1... Nf6 {[%clk 0:03:00.7]} 2. Nf3 {[%clk 0:03:02.5]}
2... g6 {[%clk 0:03:01.7]} 3. g3 {[%clk 0:03:02.1]} 3... Bg7 {[%clk 0:03:03]} 4.
Bg2 {[%clk 0:03:03.7]} 4... O-O {[%clk 0:03:03.9]} 5. O-O {[%clk 0:03:05.2]}
5... d5 {[%clk 0:03:04.8]} 6. c4 {[%clk 0:03:04]} 6... c6 {[%clk 0:03:06.3]} 7.
cxd5 {[%clk 0:03:04.5]} 7... cxd5 {[%clk 0:03:08.2]} 8. Ne5 {[%clk 0:03:06.1]}
8... Ng4 {[%clk 0:03:06.5]} 9. Nxg4 {[%clk 0:03:04.8]} 9... Bxg4 {[%clk
0:03:08.4]} 10. Nc3 {[%clk 0:03:05.8]} 10... Nc6 {[%clk 0:03:08.7]} 11. Be3
{[%clk 0:03:00.3]} 11... e5 {[%clk 0:03:10]} 12. Nxd5 {[%clk 0:02:40.9]} 12...
exd4 {[%clk 0:03:10.2]} 13. Bf4 {[%clk 0:02:39.8]} 13... Re8 {[%clk 0:03:01.4]}
14. Re1 {[%clk 0:02:33.8]} 14... Rc8 {[%clk 0:03:01.3]} 15. Qd2 {[%clk
0:02:24.7]} 15... Ne5 {[%clk 0:02:16.8]} 16. Qb4 {[%clk 0:02:08.1]} 16... d3
{[%clk 0:02:03.2]} 17. exd3 {[%clk 0:02:01]} 17... Nxd3 {[%clk 0:02:05.1]} 18.
Rxe8+ {[%clk 0:01:30.8]} 18... Qxe8 {[%clk 0:02:07]} 19. Qxb7 {[%clk 0:01:26.8]}
19... Rc2 {[%clk 0:01:17.6]} 20. Qe7 {[%clk 0:01:05.4]} 20... Qxe7 {[%clk
0:00:54.8]} 21. Nxe7+ {[%clk 0:01:07.3]} 21... Kh8 {[%clk 0:00:56.6]} 22. h3
{[%clk 0:01:05.7]} 22... Bxb2 {[%clk 0:00:52]} 23. Rb1 {[%clk 0:00:57.7]} 23...
Nxf4 {[%clk 0:00:45.1]} 24. gxf4 {[%clk 0:00:28.4]} 24... Be6 {[%clk 0:00:45.2]}
25. Be4 {[%clk 0:00:21.4]} 25... Rd2 {[%clk 0:00:42.7]} 26. a4 {[%clk
0:00:06.8]} 26... Bd4 {[%clk 0:00:38.8]} 27. Nc6 {[%clk 0:00:07.9]} 27... Bxf2+
{[%clk 0:00:39.3]} 28. Kg2 {[%clk 0:00:08.9]} 28... Bb6+ {[%clk 0:00:39.2]} 29.
Kg3 {[%clk 0:00:09.8]} 29... Bf2+ {[%clk 0:00:38]} 30. Kg2 {[%clk 0:00:10]}
30... Bb6+ {[%clk 0:00:38.5]} 31. Kg3 {[%clk 0:00:11.2]} 31... Ra2 {[%clk
0:00:36.7]} 32. a5 {[%clk 0:00:07.7]} 32... Ra3+ {[%clk 0:00:35.8]} 33. Bf3
{[%clk 0:00:05.1]} 33... Bxa5 {[%clk 0:00:20.8]} 34. Nxa5 {[%clk 0:00:06.2]}
34... Rxa5 {[%clk 0:00:22.7]} 35. h4 {[%clk 0:00:07.3]} 35... h5 {[%clk
0:00:21]} 36. Rb7 {[%clk 0:00:07.8]} 36... Ra3 {[%clk 0:00:20.5]} 37. f5 {[%clk
0:00:08.4]} 37... Rxf3+ {[%clk 0:00:20.7]} 0-1

[Event "*** Titled Tuesday Blitz"]
[Site "Chess.com"]
[Date "2020.02.04"]
[Round "3"]
[White "cholzan"]
[Black "Blitzstream"]
[Result "1-0"]
[WhiteElo "2512"]
[BlackElo "2791"]
[TimeControl "180+2"]
[EndTime "9:38:00 PST"]
[Termination "cholzan won by resignation"]

1. d4 {[%clk 0:03:01.9]} 1... d5 {[%clk 0:03:01.2]} 2. c4 {[%clk 0:03:01.6]}
2... c6 {[%clk 0:03:02.7]} 3. Nf3 {[%clk 0:03:02]} 3... Nf6 {[%clk 0:03:04.2]}
4. e3 {[%clk 0:03:03.3]} 4... Bf5 {[%clk 0:03:05.2]} 5. Nc3 {[%clk 0:03:03.5]}
5... e6 {[%clk 0:03:06.8]} 6. Nh4 {[%clk 0:03:04.6]} 6... Be4 {[%clk 0:03:08.2]}
7. f3 {[%clk 0:03:05.8]} 7... Bg6 {[%clk 0:03:09.5]} 8. Qb3 {[%clk 0:03:05.4]}
8... Qb6 {[%clk 0:03:10.1]} 9. Nxg6 {[%clk 0:03:04]} 9... Qxb3 {[%clk
0:03:01.2]} 10. axb3 {[%clk 0:03:05.9]} 10... hxg6 {[%clk 0:03:02.3]} 11. Bd2
{[%clk 0:03:07.2]} 11... Nbd7 {[%clk 0:03:02]} 12. c5 {[%clk 0:03:06.6]} 12...
a6 {[%clk 0:03:00.5]} 13. f4 {[%clk 0:03:07.1]} 13... Be7 {[%clk 0:02:54.9]} 14.
Bd3 {[%clk 0:03:08]} 14... Ng4 {[%clk 0:02:36.4]} 15. h3 {[%clk 0:03:02.6]}
15... Bh4+ {[%clk 0:02:31.9]} 16. Ke2 {[%clk 0:03:03.3]} 16... Nf2 {[%clk
0:02:33]} 17. Rhf1 {[%clk 0:03:03]} 17... Nxd3 {[%clk 0:02:33.1]} 18. Kxd3
{[%clk 0:03:04.9]} 18... f5 {[%clk 0:02:23.1]} 19. Na4 {[%clk 0:03:05]} 19... g5
{[%clk 0:02:12.4]} 20. Ba5 {[%clk 0:02:57]} 20... gxf4 {[%clk 0:02:09.5]} 21.
exf4 {[%clk 0:02:58.9]} 21... Nf6 {[%clk 0:01:57.5]} 22. Bc7 {[%clk 0:02:55.1]}
22... Kf7 {[%clk 0:01:31.5]} 23. Nb6 {[%clk 0:02:52.2]} 23... Rae8 {[%clk
0:01:30.6]} 24. Be5 {[%clk 0:02:51.7]} 24... Ne4 {[%clk 0:01:25.4]} 25. b4
{[%clk 0:02:43.8]} 25... Bd8 {[%clk 0:01:25.4]} 26. Nc8 {[%clk 0:02:40.5]} 26...
Rh6 {[%clk 0:01:18.3]} 27. Nd6+ {[%clk 0:02:40.3]} 27... Nxd6 {[%clk 0:01:18.6]}
28. cxd6 {[%clk 0:02:41.3]} 28... Rg6 {[%clk 0:01:17.3]} 29. Rf2 {[%clk
0:02:40]} 29... Rg3+ {[%clk 0:01:12.3]} 30. Ke2 {[%clk 0:02:30.8]} 30... Bb6
{[%clk 0:01:13]} 31. Kf1 {[%clk 0:02:29.1]} 31... Ba7 {[%clk 0:01:05.3]} 32. b5
{[%clk 0:02:30]} 32... cxb5 {[%clk 0:01:04]} 33. Rc2 {[%clk 0:02:28.1]} 33...
Bb6 {[%clk 0:01:03.6]} 34. Rac1 {[%clk 0:02:25.2]} 34... Rd8 {[%clk 0:01:01.5]}
35. Rc8 {[%clk 0:02:21.3]} 35... Rd7 {[%clk 0:00:57.3]} 36. R1c7 {[%clk
0:02:22.1]} 36... Bxc7 {[%clk 0:00:46.5]} 37. dxc7 {[%clk 0:02:21.2]} 37... Kg6
{[%clk 0:00:36.5]} 38. Re8 {[%clk 0:02:09.8]} 38... Rxc7 {[%clk 0:00:35.4]} 39.
Bxc7 {[%clk 0:02:11]} 39... Rb3 {[%clk 0:00:37]} 40. Rxe6+ {[%clk 0:02:10.6]}
40... Kh5 {[%clk 0:00:38.1]} 41. Re2 {[%clk 0:02:11.4]} 41... Kh4 {[%clk
0:00:36.4]} 42. Kf2 {[%clk 0:02:09.3]} 42... Rd3 {[%clk 0:00:35.6]} 43. Be5
{[%clk 0:02:07.9]} 43... a5 {[%clk 0:00:35.5]} 44. Bxg7 {[%clk 0:02:06.1]} 44...
a4 {[%clk 0:00:36.5]} 45. Re6 {[%clk 0:01:41.7]} 45... Rd2+ {[%clk 0:00:32.4]}
46. Kf3 {[%clk 0:01:42.8]} 46... Rd3+ {[%clk 0:00:33.1]} 47. Ke2 {[%clk
0:01:43.1]} 47... Rb3 {[%clk 0:00:34.1]} 48. Rg6 {[%clk 0:01:40.5]} 48... Rxb2+
{[%clk 0:00:30.8]} 49. Kf3 {[%clk 0:01:41.5]} 49... Rb3+ {[%clk 0:00:32]} 50.
Kf2 {[%clk 0:01:42.7]} 50... Rb2+ {[%clk 0:00:28.8]} 51. Kg1 {[%clk 0:01:43.2]}
51... Rc2 {[%clk 0:00:24.2]} 52. Kh2 {[%clk 0:01:35.7]} 52... Rc6 {[%clk
0:00:23.8]} 53. Rxc6 {[%clk 0:01:27.2]} 53... bxc6 {[%clk 0:00:24.2]} 54. Bf8
{[%clk 0:01:28.4]} 54... Kh5 {[%clk 0:00:24.3]} 55. Bc5 {[%clk 0:01:25.5]} 55...
Kg6 {[%clk 0:00:25]} 56. g4 {[%clk 0:01:26.5]} 56... Kf6 {[%clk 0:00:25.9]} 57.
Kg3 {[%clk 0:01:26.4]} 57... Kg6 {[%clk 0:00:27.5]} 58. h4 {[%clk 0:01:26.1]}
1-0

[Event "*** Titled Tuesday Blitz"]
[Site "Chess.com"]
[Date "2020.02.04"]
[Round "3"]
[White "messiboca"]
[Black "platy3"]
[Result "0-1"]
[WhiteElo "2649"]
[BlackElo "2911"]
[TimeControl "180+2"]
[EndTime "9:38:01 PST"]
[Termination "platy3 won by resignation"]

1. d4 {[%clk 0:03:01.9]} 1... Nf6 {[%clk 0:03:00.5]} 2. Nf3 {[%clk 0:03:02.4]}
2... e6 {[%clk 0:03:00.9]} 3. Bg5 {[%clk 0:02:53.3]} 3... b6 {[%clk 0:03:00.9]}
4. Nbd2 {[%clk 0:02:53.7]} 4... h6 {[%clk 0:03:00.9]} 5. Bh4 {[%clk 0:02:52]}
5... Bb7 {[%clk 0:03:01.4]} 6. e3 {[%clk 0:02:48.8]} 6... g5 {[%clk 0:02:53.7]}
7. Bg3 {[%clk 0:02:49.3]} 7... Nh5 {[%clk 0:02:55.2]} 8. Be5 {[%clk 0:02:36.8]}
8... Bg7 {[%clk 0:02:44.7]} 9. Bxg7 {[%clk 0:02:26]} 9... Nxg7 {[%clk
0:02:45.7]} 10. Bd3 {[%clk 0:02:20.5]} 10... g4 {[%clk 0:02:39.3]} 11. Ne5
{[%clk 0:02:18.4]} 11... h5 {[%clk 0:02:40.7]} 12. Be4 {[%clk 0:02:06]} 12...
Bxe4 {[%clk 0:02:36.8]} 13. Nxe4 {[%clk 0:02:07]} 13... d6 {[%clk 0:02:32.4]}
14. Nd3 {[%clk 0:02:07.4]} 14... Nd7 {[%clk 0:02:19]} 15. h3 {[%clk 0:02:06.6]}
15... f5 {[%clk 0:02:10.7]} 16. Nc3 {[%clk 0:01:56.8]} 16... Kf7 {[%clk
0:02:01.6]} 17. Qe2 {[%clk 0:01:54.4]} 17... Qg5 {[%clk 0:02:01.3]} 18. O-O-O
{[%clk 0:01:53.2]} 18... Nf6 {[%clk 0:01:56.7]} 19. Kb1 {[%clk 0:01:52.5]} 19...
Ne4 {[%clk 0:01:32]} 20. Nxe4 {[%clk 0:01:51.6]} 20... fxe4 {[%clk 0:01:32.8]}
21. Nf4 {[%clk 0:01:53.2]} 21... d5 {[%clk 0:01:32.8]} 22. Qb5 {[%clk
0:01:34.2]} 22... Qe7 {[%clk 0:01:16.6]} 23. c4 {[%clk 0:01:32.3]} 23... c6
{[%clk 0:01:16.3]} 24. Qxc6 {[%clk 0:01:26.7]} 24... Rac8 {[%clk 0:01:16.3]} 25.
Qb5 {[%clk 0:01:22.4]} 25... Rxc4 {[%clk 0:01:04.4]} 26. hxg4 {[%clk 0:01:22.6]}
26... a6 {[%clk 0:00:56.8]} 27. Qxb6 {[%clk 0:01:13.9]} 27... Rhc8 {[%clk
0:00:44.1]} 28. gxh5 {[%clk 0:00:55.6]} 28... Rb4 {[%clk 0:00:44.6]} 29. Qa5
{[%clk 0:00:43]} 29... Qb7 {[%clk 0:00:40.7]} 30. Rd2 {[%clk 0:00:37.3]} 30...
Nf5 {[%clk 0:00:27]} 31. h6 {[%clk 0:00:37.2]} 31... Nd6 {[%clk 0:00:28.1]} 32.
h7 {[%clk 0:00:21.7]} 32... Nc4 {[%clk 0:00:28.7]} 33. h8=Q {[%clk 0:00:22.6]}
33... Rxh8 {[%clk 0:00:16.7]} 34. Rxh8 {[%clk 0:00:19.5]} 34... Rxb2+ {[%clk
0:00:17.1]} 35. Kc1 {[%clk 0:00:16.7]} 35... Rb1+ {[%clk 0:00:15.3]} 0-1

[Event "*** Titled Tuesday Blitz"]
[Site "Chess.com"]
[Date "2020.02.04"]
[Round "3"]
[White "Everyfishknows"]
[Black "earling8018"]
[Result "1-0"]
[WhiteElo "2326"]
[BlackElo "2056"]
[TimeControl "180+2"]
[EndTime "9:38:02 PST"]
[Termination "Everyfishknows won on time"]

1. Nf3 {[%clk 0:03:01.9]} 1... d5 {[%clk 0:02:53.7]} 2. e3 {[%clk 0:03:00.8]}
2... g6 {[%clk 0:02:49.3]} 3. c4 {[%clk 0:02:56.5]} 3... c6 {[%clk 0:02:45.9]}
4. Nc3 {[%clk 0:02:52.4]} 4... Bg7 {[%clk 0:02:40.5]} 5. d4 {[%clk 0:02:43.1]}
5... Nf6 {[%clk 0:02:17.9]} 6. Bd3 {[%clk 0:02:37.6]} 6... O-O {[%clk
0:02:15.1]} 7. O-O {[%clk 0:02:38.2]} 7... Na6 {[%clk 0:02:11.2]} 8. b3 {[%clk
0:02:01.9]} 8... Re8 {[%clk 0:02:10.8]} 9. Bb2 {[%clk 0:02:00.2]} 9... b6 {[%clk
0:01:56.5]} 10. Rc1 {[%clk 0:01:56.7]} 10... Nb4 {[%clk 0:01:49.3]} 11. Bb1
{[%clk 0:01:56.7]} 11... a5 {[%clk 0:01:50]} 12. Re1 {[%clk 0:01:12.8]} 12...
Bf5 {[%clk 0:01:41.6]} 13. e4 {[%clk 0:01:00]} 13... dxe4 {[%clk 0:01:37]} 14.
Nxe4 {[%clk 0:00:52.8]} 14... Nxe4 {[%clk 0:01:26.2]} 15. Bxe4 {[%clk 0:00:54]}
15... Bxe4 {[%clk 0:01:26.5]} 16. Rxe4 {[%clk 0:00:54.9]} 16... Nxa2 {[%clk
0:01:26.9]} 17. Ra1 {[%clk 0:00:56.1]} 17... Nb4 {[%clk 0:01:27.3]} 18. Qe2
{[%clk 0:00:52.4]} 18... c5 {[%clk 0:01:18.3]} 19. d5 {[%clk 0:00:49.6]} 19...
Bxb2 {[%clk 0:01:18]} 20. Qxb2 {[%clk 0:00:51.5]} 20... Qd7 {[%clk 0:01:04.4]}
21. Rae1 {[%clk 0:00:45.2]} 21... a4 {[%clk 0:00:57.7]} 22. bxa4 {[%clk
0:00:43.9]} 22... Qxa4 {[%clk 0:00:52.7]} 23. Rxe7 {[%clk 0:00:21.5]} 23... Rxe7
{[%clk 0:00:44.7]} 24. Rxe7 {[%clk 0:00:23.4]} 24... Qd1+ {[%clk 0:00:20.9]} 25.
Re1 {[%clk 0:00:23.7]} 25... Qd3 {[%clk 0:00:09.4]} 26. Qf6 {[%clk 0:00:12.7]}
26... Nc2 {[%clk 0:00:04.3]} 27. Rf1 {[%clk 0:00:11.8]} 27... Nd4 {[%clk
0:00:04.7]} 28. Nxd4 {[%clk 0:00:03.6]} 28... cxd4 {[%clk 0:00:05.9]} 29. d6
{[%clk 0:00:02.4]} 29... Qxc4 {[%clk 0:00:04.9]} 30. d7 {[%clk 0:00:03.1]} 30...
Qd5 {[%clk 0:00:06]} 31. Re1 {[%clk 0:00:03.2]} 31... Qxd7 {[%clk 0:00:05.3]}
32. h3 {[%clk 0:00:03.8]} 32... h5 {[%clk 0:00:04]} 33. Re7 {[%clk 0:00:04.3]}
33... Qd5 {[%clk 0:00:04.1]} 34. Qxb6 {[%clk 0:00:05.4]} 34... Ra1+ {[%clk
0:00:03]} 35. Kh2 {[%clk 0:00:06.3]} 35... Ra2 {[%clk 0:00:03.6]} 36. Qb8+
{[%clk 0:00:07.4]} 36... Kg7 {[%clk 0:00:03.8]} 37. Qf4 {[%clk 0:00:08.7]} 1-0

[Event "*** Titled Tuesday Blitz"]
[Site "Chess.com"]
[Date "2020.02.04"]
[Round "3"]
[White "secretsuperstar7"]
[Black "RojonR"]
[Result "1-0"]
[WhiteElo "2257"]
[BlackElo "2426"]
[TimeControl "180+2"]
[EndTime "9:38:04 PST"]
[Termination "secretsuperstar7 won by resignation"]

1. e4 {[%clk 0:03:01.9]} 1... e5 {[%clk 0:03:00.9]} 2. Nf3 {[%clk 0:03:00.3]}
2... Nc6 {[%clk 0:03:01.6]} 3. Bb5 {[%clk 0:03:00.5]} 3... Bc5 {[%clk 0:03:02]}
4. O-O {[%clk 0:02:45.5]} 4... Nf6 {[%clk 0:03:01.9]} 5. d3 {[%clk 0:02:45.6]}
5... d6 {[%clk 0:03:02.5]} 6. c3 {[%clk 0:02:43.9]} 6... O-O {[%clk 0:03:01.5]}
7. Nbd2 {[%clk 0:02:39.8]} 7... Bb6 {[%clk 0:03:01.7]} 8. h3 {[%clk 0:02:34.9]}
8... Ne7 {[%clk 0:03:01.6]} 9. Re1 {[%clk 0:02:28.8]} 9... c6 {[%clk 0:03:02.1]}
10. Ba4 {[%clk 0:02:28.8]} 10... Ng6 {[%clk 0:03:01.2]} 11. Nf1 {[%clk
0:02:28.1]} 11... Bc7 {[%clk 0:03:01.6]} 12. d4 {[%clk 0:02:20.3]} 12... h6
{[%clk 0:02:57.8]} 13. Ng3 {[%clk 0:02:14.4]} 13... Re8 {[%clk 0:02:53.6]} 14.
Bc2 {[%clk 0:02:08.9]} 14... Be6 {[%clk 0:02:43.3]} 15. Be3 {[%clk 0:02:04.7]}
15... Qd7 {[%clk 0:02:34.5]} 16. Nf5 {[%clk 0:01:44.6]} 16... Rad8 {[%clk
0:02:29.4]} 17. g4 {[%clk 0:01:39.7]} 17... Qc8 {[%clk 0:02:25.4]} 18. dxe5
{[%clk 0:01:36.2]} 18... dxe5 {[%clk 0:02:25]} 19. Qe2 {[%clk 0:01:35.4]} 19...
Nf4 {[%clk 0:02:25.6]} 20. Qf1 {[%clk 0:01:30.7]} 20... Bxf5 {[%clk 0:02:07.2]}
21. exf5 {[%clk 0:01:11.8]} 21... e4 {[%clk 0:02:05.5]} 22. Nd2 {[%clk
0:01:02.3]} 22... Nd3 {[%clk 0:01:38.4]} 23. Re2 {[%clk 0:00:57.6]} 23... Nxb2
{[%clk 0:01:15.4]} 24. Bd4 {[%clk 0:00:56.7]} 24... Nd5 {[%clk 0:01:10.7]} 25.
Nxe4 {[%clk 0:00:52.7]} 25... Nf4 {[%clk 0:01:01.7]} 26. Re3 {[%clk 0:00:53.6]}
26... Nd5 {[%clk 0:00:51.4]} 27. Rf3 {[%clk 0:00:50.9]} 27... b5 {[%clk
0:00:49.6]} 28. f6 {[%clk 0:00:32.9]} 28... g6 {[%clk 0:00:31.7]} 29. Qc1 {[%clk
0:00:32.2]} 29... Nf4 {[%clk 0:00:22.1]} 30. Rxf4 {[%clk 0:00:17.7]} 30... Bxf4
{[%clk 0:00:22.4]} 31. Qxf4 {[%clk 0:00:17.7]} 31... Kh7 {[%clk 0:00:23.4]} 32.
Ng5+ {[%clk 0:00:16]} 32... hxg5 {[%clk 0:00:23.1]} 33. Qxg5 {[%clk 0:00:17.1]}
33... Rxd4 {[%clk 0:00:23]} 34. Qh4+ {[%clk 0:00:16.6]} 34... Kg8 {[%clk
0:00:23]} 35. Qh6 {[%clk 0:00:16.6]} 35... Rxg4+ {[%clk 0:00:20.5]} 36. Kf1
{[%clk 0:00:15.9]} 36... Re1+ {[%clk 0:00:04.8]} 37. Rxe1 {[%clk 0:00:15.7]}
37... Qf8 {[%clk 0:00:06.7]} 38. Re8 {[%clk 0:00:14.8]} 1-0

[Event "*** Titled Tuesday Blitz"]
[Site "Chess.com"]
[Date "2020.02.04"]
[Round "3"]
[White "WelshTiger"]
[Black "mirciulica14"]
[Result "1-0"]
[WhiteElo "2279"]
[BlackElo "2552"]
[TimeControl "180+2"]
[EndTime "9:38:10 PST"]
[Termination "WelshTiger won by resignation"]

1. e4 {[%clk 0:03:01.9]} 1... e5 {[%clk 0:03:00.7]} 2. Nf3 {[%clk 0:03:01.1]}
2... Nc6 {[%clk 0:03:02]} 3. Nc3 {[%clk 0:03:02.4]} 3... Nf6 {[%clk 0:03:03]} 4.
d4 {[%clk 0:03:03.4]} 4... exd4 {[%clk 0:03:04.9]} 5. Nxd4 {[%clk 0:03:04.5]}
5... Bb4 {[%clk 0:03:06.6]} 6. Nxc6 {[%clk 0:03:05.5]} 6... bxc6 {[%clk
0:03:08.5]} 7. Bd3 {[%clk 0:03:06.6]} 7... d5 {[%clk 0:03:08.9]} 8. exd5 {[%clk
0:03:08.5]} 8... O-O {[%clk 0:03:10.6]} 9. O-O {[%clk 0:03:09.3]} 9... cxd5
{[%clk 0:03:12.3]} 10. h3 {[%clk 0:03:10.7]} 10... c6 {[%clk 0:03:13.7]} 11. Qf3
{[%clk 0:03:11.9]} 11... h6 {[%clk 0:03:05.2]} 12. Bf4 {[%clk 0:03:12.4]} 12...
Bd6 {[%clk 0:03:05.8]} 13. Rfe1 {[%clk 0:03:11.3]} 13... Rb8 {[%clk 0:03:06.1]}
14. b3 {[%clk 0:03:11.3]} 14... Qc7 {[%clk 0:03:06.9]} 15. Bxd6 {[%clk
0:03:10.1]} 15... Qxd6 {[%clk 0:03:08.8]} 16. Na4 {[%clk 0:03:00.4]} 16... c5
{[%clk 0:01:51.1]} 17. Qg3 {[%clk 0:02:43.2]} 17... Qxg3 {[%clk 0:01:40.9]} 18.
fxg3 {[%clk 0:02:44.6]} 18... c4 {[%clk 0:01:34.1]} 19. bxc4 {[%clk 0:02:30.5]}
19... dxc4 {[%clk 0:01:36]} 20. Bxc4 {[%clk 0:02:29.5]} 20... Bf5 {[%clk
0:01:37.6]} 21. Bb3 {[%clk 0:02:23.3]} 21... Rbc8 {[%clk 0:01:32.5]} 22. c4
{[%clk 0:02:23.2]} 22... Be6 {[%clk 0:01:25]} 23. Rac1 {[%clk 0:02:19.9]} 23...
Rc7 {[%clk 0:01:24]} 24. c5 {[%clk 0:02:16.5]} 24... Bd7 {[%clk 0:01:22.8]} 25.
Re7 {[%clk 0:02:05.5]} 25... Rfc8 {[%clk 0:01:12.1]} 26. Rxf7 {[%clk 0:01:58.3]}
26... Kh8 {[%clk 0:01:12.7]} 27. Kh2 {[%clk 0:01:34.1]} 27... a5 {[%clk
0:01:12.8]} 28. Re7 {[%clk 0:01:32.2]} 28... Bxa4 {[%clk 0:01:11.7]} 29. Rxc7
{[%clk 0:01:29.4]} 29... Rxc7 {[%clk 0:01:11.4]} 30. Bxa4 {[%clk 0:01:30.3]}
30... Nd5 {[%clk 0:01:09]} 31. c6 {[%clk 0:01:28.5]} 31... Nb6 {[%clk
0:00:58.8]} 32. Bb5 {[%clk 0:01:28.7]} 32... Kg8 {[%clk 0:01:00.1]} 33. a4
{[%clk 0:01:02.3]} 33... Kf8 {[%clk 0:01:00.4]} 34. Re1 {[%clk 0:01:03]} 34...
Nd5 {[%clk 0:00:49.8]} 35. g4 {[%clk 0:01:00.1]} 35... g5 {[%clk 0:00:47.4]} 36.
Kg3 {[%clk 0:00:59.6]} 36... Nf4 {[%clk 0:00:43.7]} 37. h4 {[%clk 0:00:53.7]}
37... Kg7 {[%clk 0:00:40.9]} 38. h5 {[%clk 0:00:54.9]} 38... Kf6 {[%clk
0:00:39.8]} 39. Rd1 {[%clk 0:00:55.9]} 39... Re7 {[%clk 0:00:27.2]} 40. Rd6+
{[%clk 0:00:51.9]} 40... Re6 {[%clk 0:00:17.1]} 41. c7 {[%clk 0:00:48.5]} 41...
Rxd6 {[%clk 0:00:11.3]} 42. c8=Q {[%clk 0:00:49.4]} 42... Re6 {[%clk 0:00:12.8]}
43. Qh8+ {[%clk 0:00:49.4]} 43... Ke7 {[%clk 0:00:14.3]} 44. Qg7+ {[%clk
0:00:49.9]} 44... Kd6 {[%clk 0:00:15.6]} 45. Qd7+ {[%clk 0:00:50.7]} 45... Kc5
{[%clk 0:00:16.4]} 46. Qc7+ {[%clk 0:00:49.4]} 46... Kb4 {[%clk 0:00:17.7]} 47.
Kf3 {[%clk 0:00:45.8]} 47... Re1 {[%clk 0:00:09]} 48. Qc4+ {[%clk 0:00:46.6]}
48... Ka3 {[%clk 0:00:10.5]} 49. Qc3+ {[%clk 0:00:47.9]} 49... Ka2 {[%clk
0:00:12.2]} 50. Qxe1 {[%clk 0:00:49.5]} 1-0